bitfinex/quotes_ETHUSD_20240722
["timestamp","ask_amount","ask_price","bid_price","bid_amount"]
[1721622798537,2.3755,3523.7,3523.1,2.8384]
[1721622799161,1.48894902,3523.9,3523.3,2.83822]
[1721622799455,1.48894902,3523.9,3523.4,0.07862472]
[1721622799949,2.4004,3523.7,3522.7,2.2577]
[1721622800168,2.4004,3523.2,3522.8,0.07877354]
[1721622800558,4.32696902,3523.6,3522.4,5.09667]
[1721622800559,2.4004,3523.5,3522.4,2.2577]
[1721622800747,5.4004,3523.5,3522.8,2.83858]
[1721622800938,5.4004,3523.5,3522.9,2.91474501]
[1721622801156,5.4004,3523.5,3522.9,2.33389501]
[1721622801341,5.4004,3523.5,3523.0,0.5172535]
[1721622801561,5.4004,3523.5,3523.0,0.59345069]
[1721622802526,2.3156,3523.4,3523.0,0.59345069]
[1721622802730,2.3156,3523.4,3523.0,0.07619719]
[1721622802931,2.3156,3523.4,3522.8,2.83863]
[1721622803131,2.3156,3523.4,3522.6,2.83879]
[1721622803132,5.15376,3523.4,3522.9,0.076126]
[1721622803365,5.15376,3523.4,3522.6,2.83879]
[1721622803672,5.15376,3523.4,3522.7,0.07618062]
[1721622803856,5.15376,3523.4,3522.7,0.87754368]
[1721622804213,5.15376,3523.4,3522.8,0.07615581]
[1721622804377,2.3156,3523.4,3522.8,0.07615581]
[1721622804560,2.3156,3523.4,3522.8,2.83864]
[1721622804868,2.3156,3523.4,3522.9,0.076146]
[1721622805234,2.3156,3523.4,3522.8,2.83864]
[1721622805462,2.3156,3523.4,3523.0,0.07612119]
[1721622805660,2.3156,3523.4,3522.9,0.076146]
[1721622805836,2.3156,3523.4,3523.1,0.07608305]
[1721622806047,2.8383,3523.3,3523.0,0.07607486]
[1721622806248,2.8383,3523.3,3523.2,0.07602525]
[1721622806249,4.685498,3523.3,3523.2,0.07602525]
[1721622806459,4.685498,3523.3,3522.5,2.83888]
[1721622806650,2.3156,3523.4,3522.7,2.83865]
[1721622807046,2.3156,3523.4,3522.8,0.07611414]
[1721622808056,2.3156,3523.4,3522.9,2.83856]
[1721622808487,2.3156,3523.4,3523.0,0.07606453]
[1721622808676,2.3156,3523.4,3522.7,2.83869]
[1721622808874,2.3156,3523.4,3522.8,0.64383581]
[1721622813393,2.3156,3523.4,3522.8,0.07607981]
[1721622813595,2.83826,3523.3,3522.8,0.07607981]
[1721622813900,2.83826,3523.3,3522.5,2.83887]
[1721622814061,2.83826,3523.3,3522.9,0.07591033]
[1721622814262,2.3156,3523.4,3522.6,2.83874]
[1721622814463,2.3156,3523.4,3522.7,0.56777]
[1721622814703,2.3156,3523.4,3522.8,0.07594014]
[1721622815002,2.3156,3523.4,3522.7,0.56777]
[1721622815303,2.3156,3523.4,3522.8,0.07593614]
[1721622815513,2.3156,3523.4,3522.7,0.56777]
[1721622815815,2.3156,3523.4,3522.8,2.9145488]
[1721622815991,2.3156,3523.4,3522.8,3.54666968]
[1721622816192,2.3156,3523.4,3522.8,2.83864]
[1721622817716,3.0,3523.5,3523.0,2.83848]
[1721622817898,5.2961,3523.7,3523.1,0.07579405]
[1721622818087,5.2961,3523.7,3523.0,2.83848]
[1721622818287,5.2961,3523.7,3523.1,0.07575072]
[1721622820720,5.2961,3523.7,3523.2,2.83831]
[1721622821020,3.0,3523.6,3523.3,0.07565745]
[1721622821380,2.2961,3523.7,3523.2,2.83831]
[1721622821721,2.2961,3523.7,3523.3,0.07565745]
[1721622821920,2.2961,3523.7,3523.2,3.4860902]
[1721622822225,2.2961,3523.7,3523.3,0.07565745]
[1721622822523,2.2961,3523.7,3523.2,3.4860902]
[1721622822692,2.2961,3523.7,3523.3,0.07565745]
[1721622822887,2.2961,3523.7,3523.2,3.4860902]
[1721622823135,2.2961,3523.7,3523.3,0.07565745]
[1721622823327,2.2961,3523.7,3523.2,3.4860902]
[1721622823547,2.2961,3523.7,3523.3,0.07565745]
[1721622823770,2.2961,3523.7,3523.2,3.4860902]
[1721622824075,2.2961,3523.7,3523.3,0.48268927]
[1721622826064,2.2961,3523.7,3523.3,0.07565745]
[1721622826438,2.2961,3523.7,3523.1,2.8384]
[1721622826965,5.83785,3523.8,3523.2,0.07561825]
[1721622826966,2.2734,3523.5,3523.2,0.07561825]
[1721622827136,2.2734,3523.5,3522.5,2.4717]
[1721622827331,2.2734,3523.5,3522.6,0.07575676]
[1721622827575,2.2734,3523.5,3522.9,2.83856]
[1721622827856,2.2734,3523.5,3523.1,2.83835]
[1721622828265,2.2734,3523.5,3523.2,0.07560792]
[1721622830974,2.2734,3523.5,3523.3,0.07549111]
[1721622831157,2.2734,3523.5,3523.0,2.83846]
[1721622831364,2.2734,3523.5,3523.1,2.91389739]
[1721622832374,2.2734,3523.5,3523.1,0.07550739]
[1721622832539,2.2734,3523.5,3523.0,2.83848]
[1721622832736,2.2734,3523.5,3523.1,0.07549239]
[1721622832980,2.2734,3523.5,3523.0,2.83848]
[1721622833161,2.2734,3523.5,3523.1,0.07549239]
[1721622833364,2.2734,3523.5,3523.1,2.83839]
[1721622833673,2.2734,3523.5,3523.2,0.07546759]
[1721622834849,3.0,3523.8,3523.2,0.65071035]
[1721622835746,3.0,3523.8,3523.4,2.83816]
[1721622835948,3.0,3523.8,3523.5,0.07533152]
[1721622839461,3.0,3523.8,3523.2,2.83829]
[1721622839661,3.0,3523.8,3523.6,0.07524839]
[1721622839951,2.3257,3523.7,3523.3,2.8382]
[1721622840152,2.3257,3523.7,3523.4,0.07526465]
[1721622840476,2.3257,3523.7,3523.3,2.8382]
[1721622840797,2.3257,3523.7,3523.4,0.07526465]
[1721622841284,2.3257,3523.7,3523.3,2.8382]
[1721622841683,2.3257,3523.7,3523.4,0.07526465]
[1721622842053,2.3257,3523.7,3523.3,2.8382]
[1721622842483,2.3257,3523.7,3523.4,0.07526465]
[1721622842907,2.3257,3523.7,3523.2,2.83832]
[1721622843371,2.3257,3523.7,3523.3,0.07528945]
[1721622843572,2.3257,3523.7,3523.2,2.83832]
[1721622843898,2.3257,3523.7,3523.3,0.07528945]
[1721622844255,2.3257,3523.7,3522.9,2.83849]
[1721622844495,2.3257,3523.7,3523.4,0.07520498]
[1721622844699,2.3257,3523.7,3523.1,2.83835]
[1721622845190,2.3257,3523.7,3523.2,2.91356459]
[1721622850891,2.3257,3523.7,3523.3,2.83823]
[1721622851270,2.3257,3523.7,3523.4,0.07520498]
[1721622852308,2.3257,3523.7,3523.5,2.83804]
[1721622852491,2.3257,3523.7,3523.5,0.5751385]
[1721622852681,2.3257,3523.7,3523.6,0.07515539]
[1721622852879,2.3257,3523.7,3523.5,0.5751385]
[1721622853288,2.3257,3523.7,3523.6,0.07515539]
[1721622853512,2.3257,3523.7,3523.5,2.83808]
[1721622853813,2.3257,3523.7,3523.6,0.07515539]
[1721622854170,2.3257,3523.7,3523.3,2.83824]
[1721622854369,2.3257,3523.7,3523.4,0.07519798]
[1721622857229,3.81454971,3523.7,3523.4,0.07519798]
[1721622857380,2.4478,3523.6,3523.4,0.07519798]
[1721622857578,2.4478,3523.6,3522.9,2.83855]
[1721622857783,1.48884971,3523.6,3523.0,0.07529719]
[1721622858121,2.4478,3523.6,3523.0,0.07529719]
[1721622858291,2.83818,3523.4,3523.0,0.07529719]
[1721622858488,2.4478,3523.5,3521.9,0.59473126]
[1721622858489,2.4478,3523.0,3521.9,0.59473126]
[1721622858795,1.48884971,3523.2,3522.0,0.07257578]
[1721622858796,2.83887,3522.6,3522.0,0.07257578]
[1721622858980,2.4478,3522.4,3521.2,3.43465126]
[1721622859185,2.83915,3522.2,3521.4,2.83971]
[1721622859401,2.83915,3522.2,3521.5,0.88939897]
[1721622859578,2.83922,3522.1,3521.5,0.82159334]
[1721622859780,2.83922,3522.1,3521.6,0.0677808]
[1721622860502,2.83936,3522.0,3521.1,2.83995]
[1721622860733,2.83936,3522.0,3521.2,2.83993]
[1721622860932,2.83936,3522.0,3521.3,0.06785528]
[1721622863539,2.83913,3522.2,3521.3,0.06785528]
[1721622863540,2.83938,3521.9,3521.3,0.06785528]
[1721622864055,2.83946,3521.8,3521.3,0.06785528]
[1721622864265,3.407328,3521.8,3521.3,0.06785528]
[1721622864420,3.407328,3521.8,3520.8,2.84026]
[1721622864421,2.4623,3521.7,3520.8,2.84026]
[1721622864759,2.83971,3521.5,3520.7,2.84027]
[1721622864963,2.83971,3521.5,3520.8,2.90568178]
[1721622865118,2.83971,3521.5,3520.8,2.84025]
[1721622865313,2.83971,3521.5,3520.8,3.408316]
[1721622867061,5.30188,3521.7,3520.8,3.408316]
[1721622867365,5.30188,3521.7,3520.9,2.84017]
[1721622867559,5.30188,3521.7,3521.0,0.06538211]
[1721622869651,2.83962,3521.6,3520.8,3.408306]
[1721622869855,2.83962,3521.6,3521.1,0.06553808]
[1721622870162,2.83962,3521.6,3520.8,3.408306]
[1721622870320,2.83971,3521.5,3520.9,0.06558775]
[1721622871523,2.83978,3521.4,3520.9,0.06558775]
[1721622872276,2.83986,3521.3,3520.9,0.06558775]
[1721622872561,2.8401,3521.0,3520.1,2.84078]
[1721622872878,2.8401,3521.0,3520.0,2.2908]
[1721622872879,2.8401,3521.0,3520.2,2.90650163]
[1721622873334,2.84002,3521.1,3520.3,2.84066]
[1721622873519,2.84002,3521.1,3520.4,0.06571194]
[1721622877253,9.847,3521.2,3520.4,2.90624194]
[1721622877634,2.84002,3521.1,3520.4,2.90624194]
[1721622878173,2.84013,3521.0,3520.4,0.06571194]
[1721622878462,12.68698,3521.2,3520.4,2.90622194]
[1721622878645,12.68698,3521.2,3520.4,3.66579935]
[1721622879352,12.68698,3521.2,3520.5,2.8405]
[1721622879541,9.847,3521.2,3520.5,2.90640889]
[1721622879726,7.48,3521.2,3520.7,2.84028]
[1721622879922,7.48,3521.2,3520.8,0.06583438]
[1721622880362,7.48,3521.2,3520.8,2.90606438]
[1721622880953,7.48,3521.2,3520.8,0.06583438]
[1721622881147,7.48,3521.2,3520.6,2.84041]
[1721622881351,7.48,3521.2,3520.7,0.06589921]
[1721622882855,2.83991,3521.3,3520.7,0.06589921]
[1721622883033,3.0,3521.2,3520.7,0.06589921]
[1721622883235,5.83979,3521.4,3520.7,2.90617921]
[1721622883572,5.83979,3521.4,3520.7,3.58534713]
[1721622885134,3.0,3521.4,3520.7,0.06589921]
[1721622885338,3.0,3521.4,3520.3,3.64446216]
[1721622885680,2.83996,3521.2,3520.5,2.84045]
[1721622886048,2.83996,3521.2,3520.6,0.06591705]
[1721622886574,2.83996,3521.2,3520.7,0.06589222]
[1721622886770,2.83996,3521.2,3520.4,2.84055]
[1721622886933,2.83996,3521.2,3520.5,0.71445111]
[1721622887535,2.83996,3521.2,3520.5,3.55494111]
[1721622888980,2.3465,3521.1,3520.5,3.55494111]
[1721622890280,2.3465,3521.1,3520.5,0.71445111]
[1721622895684,2.3465,3521.1,3520.5,3.55494111]
[1721622897379,2.3465,3521.1,3520.6,0.71994133]
[1721622897553,2.3465,3521.1,3520.7,0.06591322]
[1721622898590,2.3465,3521.1,3520.5,2.84049]
[1721622898788,2.3465,3521.1,3520.8,0.06588838]
[1721622899014,2.3465,3521.1,3520.5,2.84049]
[1721622899173,2.3465,3521.1,3520.9,0.06586354]
[1721622899513,2.3465,3521.1,3520.5,3.48898622]
[1721622899808,2.3465,3521.1,3521.0,0.06583871]
[1721622900016,2.3465,3521.1,3520.5,2.84049]
[1721622900217,2.3465,3521.1,3521.0,0.06583871]
[1721622900382,2.3465,3521.1,3520.5,2.84049]
[1721622900584,2.3465,3521.1,3521.0,0.06583871]
[1721622900779,2.3465,3521.1,3520.5,2.84049]
[1721622901084,2.3465,3521.1,3521.0,0.06583871]
[1721622901484,2.3465,3521.1,3520.5,2.84049]
[1721622902007,2.3465,3521.1,3520.6,0.06593805]
[1721622903674,2.3465,3521.1,3520.6,3.56143807]
[1721622904223,2.3465,3521.1,3520.6,0.72102807]
[1721622904584,2.3465,3521.1,3520.6,0.06593805]
[1721622904911,5.18652,3521.1,3520.6,0.06593805]
[1721622905298,5.18652,3521.1,3520.3,3.64447216]
[1721622905475,5.18652,3521.1,3520.7,0.06595021]
[1721622905671,5.18652,3521.1,3520.3,3.64447216]
[1721622905872,5.18652,3521.1,3520.8,0.06592537]
[1721622906073,5.18652,3521.1,3520.4,0.4585868]
[1721622906413,5.18652,3521.1,3520.5,0.06600389]
[1721622914951,2.84011,3521.0,3520.5,0.06600389]
[1721622915528,5.18622,3520.6,3520.5,0.06600389]
[1721622915732,8.02664,3520.6,3520.5,0.06600389]
[1721622915882,8.02664,3520.6,3519.3,1.33745929]
[1721622915883,2.3458,3520.1,3519.4,2.84137]
[1721622916311,2.3458,3520.1,3519.5,0.06410602]
[1721622918330,5.18663,3520.1,3519.5,0.06410602]
[1721622918490,6.60203257,3520.1,3519.5,0.06410602]
[1721622918819,6.60203257,3520.1,3519.6,0.06192983]
[1721622919026,6.60203257,3520.1,3519.2,2.84151]
[1721622919225,5.18663,3520.1,3519.2,2.84151]
[1721622919440,5.18663,3520.1,3519.3,0.06200439]
[1721622920019,5.18663,3520.1,3519.3,2.90346439]
[1721622920747,2.3458,3520.1,3519.4,2.84133]
[1721622921153,5.18663,3520.1,3519.5,0.06195468]
[1721622921857,5.18663,3520.1,3519.5,2.90325468]
[1721622922152,5.18663,3520.1,3519.5,0.06195468]
[1721622922449,5.18663,3520.1,3519.3,2.84143]
[1721622922663,5.18663,3520.1,3519.4,0.06197954]
[1721622925413,2.3458,3520.1,3519.4,2.90334954]
[1721622925745,2.3458,3520.1,3519.4,0.06197954]
[1721622925955,2.3225,3519.8,3519.4,0.06197954]
[1721622926136,5.16357,3519.8,3519.0,2.8417]
[1721622926521,5.16357,3519.8,3519.1,0.05998978]
[1721622926854,5.964018,3519.8,3519.1,0.05998978]
[1721622927014,2.84116,3519.7,3519.1,0.05998978]
[1721622927841,2.84124,3519.6,3518.8,2.84187]
[1721622928149,2.84124,3519.6,3518.9,0.0600395]
[1721622928522,2.84131,3519.5,3518.9,0.0600395]
[1721622928953,5.16357,3519.8,3518.9,0.0600395]
[1721622928954,2.3225,3519.8,3518.9,0.0600395]
[1721622929155,2.84157,3519.2,3518.9,0.0600395]
[1721622929359,2.84157,3519.2,3518.4,2.84219]
[1721622929523,2.84157,3519.2,3519.0,0.06001464]
[1721622929723,3.642114,3519.2,3518.4,2.84219]
[1721622929940,2.84157,3519.2,3519.1,0.05998978]
[1721622930138,2.84157,3519.2,3518.4,2.84219]
[1721622930560,2.84157,3519.2,3518.5,0.06013897]
[1721622931067,3.0,3519.8,3518.5,0.06013897]
[1721622931068,2.3225,3518.9,3518.5,0.06013897]
[1721622931428,2.3225,3518.9,3518.4,2.84219]
[1721622932160,2.3225,3518.9,3518.5,0.16647632]
[1721622933026,2.3225,3518.9,3518.1,2.84243]
[1721622933027,5.16432,3518.9,3518.1,2.84243]
[1721622933260,5.16432,3518.9,3518.2,0.16136757]
[1721622933573,2.3225,3518.9,3518.2,0.16136757]
[1721622933862,2.3225,3518.9,3518.3,2.84221]
[1721622934168,2.3225,3518.9,3518.4,0.16131077]
[1721622936833,7.48,3519.2,3518.4,0.74590585]
[1721622937046,7.48,3519.2,3519.1,2.84163]
[1721622937276,3.0,3519.4,3519.1,3.00270658]
[1721622937571,2.4701,3519.6,3519.1,3.00270658]
[1721622937978,2.4701,3519.6,3519.1,0.16112658]
[1721622938338,2.4701,3519.6,3518.4,3.5199]
[1721622938339,2.4701,3519.6,3518.6,1.047]
[1721622938534,2.4701,3519.6,3519.2,3.0025787]
[1721622938747,3.0,3519.9,3519.2,2.84154]
[1721622938748,2.4701,3519.9,3519.2,2.84154]
[1721622939079,7.48,3520.0,3519.6,2.84116]
[1721622939276,7.48,3520.0,3519.4,2.84132]
[1721622939277,2.84069,3520.3,3519.4,2.84132]
[1721622939639,2.84093,3520.0,3519.2,2.84154]
[1721622939942,0.284093,3519.9,3519.3,0.16099674]
[1721622940138,2.4326,3519.8,3519.3,0.16099674]
[1721622940540,2.84124,3519.6,3519.3,0.16099674]
[1721622940750,2.84124,3519.6,3518.7,2.84195]
[1721622940751,5.84138,3519.5,3518.7,2.84195]
[1721622940951,5.84138,3519.5,3519.4,0.16094684]
[1721622941182,5.84138,3519.5,3518.5,2.84211]
[1721622941183,7.700893,3519.5,3518.8,2.84186]
[1721622941544,4.859513,3519.5,3518.9,0.16108425]
[1721622941745,1.859513,3519.5,3518.9,0.16108425]
[1721622942483,4.700823,3519.5,3518.9,0.16108425]
[1721622942664,3.0,3519.4,3518.9,0.16108425]
[1721622942870,3.0,3519.4,3518.7,2.84193]
[1721622943072,5.84142,3519.4,3518.8,0.16115717]
[1721622943282,2.8415,3519.3,3518.6,2.84201]
[1721622943460,8.21616,3519.2,3518.4,2.84219]
[1721622943648,5.21616,3519.2,3518.5,0.16121181]
[1721622943856,3.0,3519.1,3518.5,0.16121181]
[1721622944149,3.0,3519.1,3518.5,2.8421]
[1721622944549,3.0,3519.1,3518.6,0.16118392]
[1721622946705,5.84164,3519.1,3518.6,0.16118392]
[1721622947013,5.84164,3519.1,3518.4,2.84218]
[1721622947151,5.84164,3519.1,3518.7,0.16115603]
[1721622947468,7.04771277,3519.1,3518.8,0.16112814]
[1721622947795,7.04771277,3519.1,3518.4,2.84218]
[1721622948160,7.04771277,3519.1,3518.5,0.16121181]
[1721622951111,4.20607277,3519.1,3518.5,0.16118392]
[1721622951316,2.84188,3518.8,3518.5,0.16118392]
[1721622951522,2.84197,3518.7,3518.0,2.9640934]
[1721622951812,5.84184,3518.9,3518.6,0.15775658]
[1721622951976,2.148866,3518.8,3518.1,2.84244]
[1721622952171,2.148866,3518.8,3518.7,0.15772869]
[1721622952620,2.148866,3518.8,3518.1,2.84244]
[1721622952969,2.148866,3518.8,3518.2,0.15786815]
[1721622953974,2.148866,3518.8,3518.3,2.84227]
[1721622954174,3.0,3518.9,3518.3,2.84227]
[1721622954374,3.0,3518.9,3518.4,3.00000236]
[1721622954678,3.0,3518.9,3518.5,2.84209]
[1721622954901,3.0,3518.9,3518.6,0.15781664]
[1721622955210,3.0,3518.9,3518.6,0.14147865]
[1721622955418,4.28051,3518.9,3518.3,2.84227]
[1721622955712,4.28051,3518.9,3518.4,0.15732783]
[1721622956008,4.28051,3518.9,3518.3,2.84227]
[1721622956517,4.28051,3518.9,3518.4,0.15732783]
[1721622956715,4.28051,3518.9,3518.3,2.84227]
[1721622957225,4.28051,3518.9,3518.4,0.15732783]
[1721622957595,4.28051,3518.9,3518.0,0.1215834]
[1721622957904,3.0,3518.9,3518.4,2.84214]
[1721622958293,3.0,3518.9,3518.5,2.99938993]
[1721622959196,3.0,3518.9,3518.6,2.84202]
[1721622959620,3.0,3518.9,3518.7,0.15724416]
[1721622960440,3.0,3518.9,3518.7,2.84193]
[1721622960593,3.0,3518.9,3518.8,0.15721627]
[1721622961036,2.3251,3519.0,3518.3,2.84224]
[1721622961198,2.3251,3519.0,3518.8,0.15721627]
[1721622961540,0.516673,3518.9,3518.3,2.84224]
[1721622961702,3.0,3518.9,3518.3,2.84224]
[1721622962098,5.3251,3519.0,3518.0,2.9640834]
[1721622962333,8.16686,3519.0,3518.3,2.84226]
[1721622962850,5.3251,3519.0,3518.4,2.84218]
[1721622963000,3.0,3518.9,3518.4,2.84218]
[1721622963192,2.3251,3519.0,3518.4,2.84218]
[1721622963434,4.173922,3519.0,3518.4,2.84218]
[1721622963605,3.0,3518.9,3518.4,2.84218]
[1721622963812,3.0,3518.9,3518.2,2.84235]
[1721622964123,3.0,3518.9,3518.3,2.84226]
[1721622964432,3.0,3518.9,3518.3,2.99793469]
[1721622965806,2.3554,3518.8,3518.3,0.15567469]
[1721622966011,5.19729,3518.8,3518.3,0.15567469]
[1721622966362,5.19729,3518.8,3518.4,0.15562979]
[1721622966517,2.3554,3518.6,3518.0,0.1215834]
[1721622966723,3.459315,3518.6,3518.0,0.1215834]
[1721622966903,3.459315,3518.6,3518.1,0.15571348]
[1721622967452,5.19776,3518.2,3518.1,0.15571348]
[1721622967809,2.3554,3518.2,3518.1,0.15571348]
[1721622968125,2.3554,3518.2,3518.1,0.15574652]
[1721622969215,6.01752,3518.2,3518.1,0.15574652]
[1721622969658,3.17516,3518.2,3518.1,0.15574652]
[1721622970207,6.01752,3518.2,3518.1,0.15574652]
[1721622970636,6.01752,3518.2,3518.0,0.1215834]
[1721622970823,2.84244,3518.1,3518.0,0.1215834]
[1721622971018,3.728436,3518.1,3518.0,0.1215834]
[1721622971609,0.885996,3518.1,3518.0,0.1215834]
[1721622971814,2.3554,3518.2,3518.0,0.1215834]
[1721622972659,3.0,3518.3,3518.0,0.1215834]
[1721622972810,3.0,3518.4,3518.0,0.1215834]
[1721622973133,3.0,3518.5,3518.0,0.1215834]
[1721622973349,5.12216317,3518.5,3518.0,0.1215834]
[1721622974470,2.84221,3518.4,3518.0,0.1215834]
[1721622974766,3.0,3518.3,3518.0,0.1215834]
[1721622974967,2.3351,3518.2,3518.0,0.1215834]
[1721622975764,5.17746,3518.2,3518.0,0.1215834]
[1721622975925,0.69062786,3518.1,3518.0,0.1215834]
[1721622977672,5.17746,3518.2,3518.0,0.1215834]
[1721622979478,5.17746,3518.2,3518.1,0.15583665]
[1721622979769,8.17746,3518.2,3518.1,0.15583665]
[1721622980070,8.17746,3518.2,3518.0,0.1215834]
[1721622980471,8.17746,3518.2,3518.1,0.15583665]
[1721622981047,5.3351,3518.2,3518.1,0.15583665]
[1721622981352,3.0,3518.2,3518.1,0.15583665]
[1721622981665,3.0,3518.3,3518.1,0.15583665]
[1721622982084,3.0,3518.4,3518.1,0.15583665]
[1721622982275,9.9416,3518.8,3518.1,0.46782966]
[1721622982462,9.9416,3518.8,3518.2,2.84234]
[1721622982660,9.9416,3518.8,3518.3,2.84223]
[1721622982977,2.84163,3519.1,3518.5,2.8421]
[1721622982978,2.3534,3519.1,3518.5,2.8421]
[1721622983660,2.3534,3519.1,3518.6,0.15568616]
[1721622984443,5.3534,3519.1,3518.6,0.15568616]
[1721622986266,8.19504,3519.1,3518.6,0.15568616]
[1721622986580,9.762544,3519.1,3518.4,2.84218]
[1721622986781,9.762544,3519.1,3518.7,0.15565827]
[1721622986945,9.762544,3519.1,3518.4,2.84218]
[1721622987273,9.762544,3519.1,3518.8,0.15563038]
[1721622987480,9.762544,3519.1,3518.2,2.84232]
[1721622987639,9.762544,3519.1,3518.3,0.15576984]
[1721622987640,8.19504,3519.1,3518.3,0.15576984]
[1721622988166,2.8418,3518.9,3518.3,0.15576984]
[1721622988366,3.0,3518.8,3518.3,0.15576984]
[1721622988566,3.0,3518.8,3518.3,2.99803984]
[1721622988769,3.0,3518.9,3518.3,2.99803984]
[1721622990091,2.98,3518.9,3518.3,3.90978843]
[1721622990665,2.3534,3519.1,3518.4,2.84219]
[1721622991046,2.3534,3519.1,3518.5,0.15562992]
[1721622991246,2.3534,3519.1,3518.5,2.99772992]
[1721622992070,5.3534,3519.1,3518.5,2.99772992]
[1721622992591,5.3534,3519.1,3518.6,2.84201]
[1721622992883,2.3534,3519.1,3518.7,0.15557415]
[1721622993072,2.3534,3519.1,3518.4,2.84215]
[1721622993272,5.3534,3519.1,3518.5,0.15562992]
[1721622993471,2.84171,3519.0,3518.5,0.15562992]
[1721622993645,2.84171,3519.0,3518.2,2.84231]
[1721622993842,2.84171,3519.0,3518.3,0.96754905]
[1721622994048,2.84171,3519.0,3518.3,3.80981905]
[1721622995936,5.3534,3519.1,3518.4,2.84218]
[1721622996080,8.19506,3519.1,3518.4,2.84218]
[1721622996394,8.19506,3519.1,3518.5,0.15562992]
[1721622997866,2.84179,3518.9,3518.3,3.65413334]
[1721622998266,2.84179,3518.9,3518.4,0.15565782]
[1721622998468,8.19506,3519.1,3518.4,0.15565782]
[1721622998770,8.19506,3519.1,3518.4,2.99783782]
[1721622999804,2.84172,3519.0,3518.4,0.15565782]
[1721623000191,2.84179,3518.9,3518.1,2.84244]
[1721623000368,2.84179,3518.9,3518.5,0.15561992]
[1721623000569,2.84179,3518.9,3518.2,2.84236]
[1721623000771,2.84179,3518.9,3518.6,0.15559203]
[1721623001074,2.84179,3518.9,3518.2,2.84236]
[1721623001666,2.84179,3518.9,3518.3,0.15567571]
[1721623003504,2.84179,3518.9,3518.4,0.29980357]
[1721623003708,2.84179,3518.9,3518.5,0.15561992]
[1721623003914,8.19503,3519.1,3518.5,0.15561992]
[1721623004067,2.84172,3519.0,3518.5,0.15561992]
[1721623004271,2.8418,3518.9,3518.3,2.84226]
[1721623004574,5.3534,3519.1,3518.4,0.15564782]
[1721623005007,5.3534,3519.1,3518.1,2.84244]
[1721623005008,2.84193,3518.8,3518.1,2.84244]
[1721623005508,2.84193,3518.8,3518.2,0.15570361]
[1721623005816,2.84193,3518.8,3518.3,0.5432027]
[1721623006105,2.84175,3519.0,3518.4,0.15564782]
[1721623006310,2.84175,3519.0,3518.3,0.5432027]
[1721623006483,2.84175,3519.0,3518.4,0.15564782]
[1721623006693,2.84175,3519.0,3518.3,0.5432027]
[1721623006870,2.84175,3519.0,3518.4,0.15564782]
[1721623007072,5.19504,3519.1,3518.4,2.99783782]
[1721623007304,3.0,3519.0,3518.4,2.99783782]
[1721623008397,3.0,3519.0,3518.5,2.84209]
[1721623008605,5.3534,3519.1,3518.5,2.84209]
[1721623008817,5.3534,3519.1,3518.6,0.15558703]
[1721623008989,8.19504,3519.1,3518.6,0.15558703]
[1721623009183,5.84164,3519.1,3518.6,0.15558703]
[1721623009480,5.84164,3519.1,3518.4,2.84217]
[1721623009818,5.84164,3519.1,3518.4,3.46494227]
[1721623010117,5.84164,3519.1,3518.5,0.15561492]
[1721623010673,2.84173,3519.0,3518.5,0.15561492]
[1721623010935,2.84173,3519.0,3518.3,2.84226]
[1721623011095,2.84173,3519.0,3518.6,0.15558703]
[1721623011293,2.84173,3519.0,3518.3,2.84226]
[1721623011518,2.84173,3519.0,3518.4,0.15564281]
[1721623012392,2.84188,3518.8,3518.4,0.15564281]
[1721623012797,2.84188,3518.8,3518.1,2.84243]
[1721623013306,2.84188,3518.8,3518.2,0.1556996]
[1721623014338,2.84188,3518.8,3518.0,2.4338834]
[1721623014678,2.84188,3518.8,3518.3,0.1556717]
[1721623014850,2.84188,3518.8,3518.0,5.2763834]
[1721623015149,2.84188,3518.8,3518.0,6.39203771]
[1721623015432,2.84188,3518.8,3518.1,0.1557275]
[1721623015795,2.2533,3518.9,3518.1,0.1557275]
[1721623016430,5.09511,3518.9,3518.2,2.84233]
[1721623016592,5.09511,3518.9,3518.3,0.65475952]
[1721623016801,5.09511,3518.9,3518.3,0.81043122]
[1721623017541,3.0,3519.1,3518.3,0.81043122]
[1721623017921,2.84181,3518.9,3518.3,0.81043122]
[1721623018305,3.0,3519.1,3518.3,0.81043122]
[1721623018504,3.0,3519.1,3518.4,0.36528512]
[1721623018817,3.0,3519.1,3518.5,0.15561592]
[1721623019017,5.84165,3519.1,3518.5,0.15561592]
[1721623019341,5.84165,3519.1,3518.4,2.84219]
[1721623019639,5.84165,3519.1,3518.0,2.4338834]
[1721623019640,3.0,3519.1,3518.5,5.2721]
[1721623019869,3.0,3519.1,3518.6,0.52721]
[1721623020030,3.0,3519.1,3518.7,2.84194]
[1721623020562,3.0,3519.1,3518.8,0.15552624]
[1721623020926,3.0,3519.1,3518.7,2.84194]
[1721623021124,3.0,3519.1,3518.8,0.15552624]
[1721623021366,3.0,3519.1,3518.7,2.84194]
[1721623021567,3.0,3519.1,3518.9,0.15549836]
[1721623021868,3.0,3519.1,3518.8,2.99739624]
[1721623022029,3.0,3519.1,3519.0,0.15547047]
[1721623022229,7.48,3519.2,3518.9,0.45523798]
[1721623022435,7.48,3519.2,3519.0,0.15545746]
[1721623022639,5.13349,3519.4,3519.0,0.15545746]
[1721623022847,3.0,3519.3,3518.7,2.84192]
[1721623023256,3.0,3519.3,3518.8,0.15551323]
[1721623023569,3.0,3519.3,3518.7,2.84192]
[1721623023745,3.0,3519.3,3518.9,0.15548534]
[1721623023949,3.0,3519.3,3518.8,0.15551323]
[1721623024145,3.0,3519.3,3519.0,0.15545746]
[1721623024343,3.0,3519.3,3518.7,3.65333]
[1721623024344,3.0,3519.3,3518.9,0.15548534]
[1721623024544,3.0,3519.3,3518.7,3.65333]
[1721623024545,3.0,3519.3,3519.1,0.15542958]
[1721623024764,3.0,3519.3,3519.0,0.15545746]